fUSD/lending_fUSD_20250219
["ID","MTS","AMOUNT","RATE_DAILY","PERIOD"]
[353651349,1739981482017,-919.89,0.00013498,2]
[353651350,1739981482027,-500.0,0.00013498,2]
[353651351,1739981482036,-500.0,0.00013498,2]
[353651352,1739981482045,-1631.66,0.00013498,2]
[353651353,1739981482055,-1630.74,0.00013498,2]
[353651354,1739981482065,-500.0,0.00013498,2]
[353651355,1739981482075,-1488.16,0.00013498,2]
[353651356,1739981482086,-500.0,0.00013498,2]
[353651357,1739981482095,-853.84,0.00013498,2]
[353651358,1739981482105,-531.89,0.00013498,2]
[353651359,1739981482115,-550.84,0.00013498,2]
[353651360,1739981482126,-500.0,0.00013498,2]
[353651361,1739981482136,-500.0,0.00013498,2]
[353651362,1739981482146,-1229.87,0.00013498,2]
[353651363,1739981482156,-2787.49,0.00013498,2]
[353651364,1739981482167,-500.0,0.00013498,2]
[353651365,1739981482177,-735.14,0.00013498,2]
[353651366,1739981482186,-500.0,0.00013498,2]
[353651367,1739981482196,-500.0,0.00013498,2]
[353651368,1739981482205,-2404.94,0.00013498,2]
[353651369,1739981482215,-500.0,0.00013498,2]
[353651370,1739981482227,-500.0,0.00013498,2]
[353651371,1739981482239,-500.0,0.00013498,2]
[353651372,1739981482249,-387.67684375,0.00013498,2]
[353651373,1739981482259,-1357.32,0.00013498,2]
[353651374,1739981482269,-868.88,0.00013498,2]
[353651375,1739981482281,-658.88,0.00013498,2]
[353651376,1739981482291,-651.71,0.00013498,2]
[353651377,1739981482301,-651.58,0.00013498,2]
[353651378,1739981482311,-500.0,0.00013498,2]
[353651379,1739981482320,-500.0,0.00013498,2]
[353651380,1739981482331,-500.0,0.00013498,2]
[353651381,1739981482342,-1016.2,0.00013498,2]
[353651382,1739981482351,-500.0,0.00013498,2]
[353651383,1739981482361,-1118.0,0.00013498,2]
[353651384,1739981482371,-253.37305889,0.00013498,2]
[353651385,1739981482381,-1202.47,0.00013498,2]
[353651386,1739981482391,-1207.34,0.00013499,2]
[353651387,1739981482400,-1505.77,0.00013499,2]
[353651388,1739981482410,-1067.17,0.00013499,2]
[353651389,1739981482419,-500.0,0.00013499,2]
[353651390,1739981482429,-500.0,0.00013499,2]
[353651391,1739981482439,-1113.19,0.00013499,2]
[353651392,1739981482449,-500.0,0.00013499,2]
[353651393,1739981482459,-911.21,0.00013499,2]
[353651394,1739981482470,-651.34,0.00013499,2]
[353651395,1739981482479,-1031.71,0.00013499,2]
[353651396,1739981482488,-759.85,0.00013499,2]
[353651397,1739981482497,-1162.39,0.00013499,2]
[353651398,1739981482507,-1299.76,0.00013499,2]
[353651399,1739981482517,-500.0,0.00013499,2]
[353651400,1739981482527,-500.0,0.00013499,2]
[353651401,1739981482537,-849.12,0.00013499,2]
[353651402,1739981482549,-615.67,0.00013499,2]
[353651403,1739981482559,-1109.7,0.00013499,2]
[353651404,1739981482569,-665.19,0.00013499,2]
[353651405,1739981482580,-500.0,0.00013499,2]
[353651406,1739981482593,-860.99,0.00013499,2]
[353651407,1739981482622,-1270.22,0.00013499,2]
[353651408,1739981482632,-1751.06,0.00013499,2]
[353651409,1739981482643,-797.36,0.00013499,2]
[353651410,1739981482653,-758.76,0.00013499,2]
[353651411,1739981482664,-500.0,0.00013499,2]
[353651412,1739981482674,-813.75,0.00013499,2]
[353651413,1739981482683,-1833.76,0.00013499,2]
[353651414,1739981482768,-1190.62,0.00013499,2]
[353651415,1739981482778,-1309.09,0.00013499,2]
[353651416,1739981482787,-671.96,0.00013499,2]
[353651417,1739981482797,-1059.62,0.00013499,2]
[353651418,1739981482806,-804.42,0.00013499,2]
[353651419,1739981482816,-771.67,0.00013499,2]
[353651420,1739981482825,-500.0,0.00013499,2]
[353651421,1739981482836,-512.14,0.00013499,2]
[353651422,1739981482845,-1003.49,0.00013499,2]
[353651423,1739981482854,-1162.25,0.00013499,2]
[353651424,1739981482864,-960.4,0.00013499,2]
[353651425,1739981482873,-500.0,0.00013499,2]
[353651426,1739981482883,-500.0,0.00013499,2]
[353651427,1739981482893,-1713.19,0.00013499,2]
[353651428,1739981482902,-787.35,0.00013499,2]
[353651429,1739981482912,-1673.22,0.00013499,2]
[353651430,1739981482923,-1201.88,0.00013499,2]
[353651431,1739981482931,-1529.79,0.00013499,2]
[353651432,1739981482941,-1923.19,0.00013499,2]
[353651433,1739981482951,-1454.02,0.00013499,2]
[353651434,1739981482960,-1769.83,0.00013499,2]
[353651435,1739981482970,-527.23,0.00013499,2]
[353651436,1739981482980,-846.13,0.00013499,2]
[353651437,1739981482990,-1387.3,0.00013499,2]
[353651438,1739981482999,-400.25335324,0.00013499,2]
[353651439,1739981483009,-1073.32,0.00013499,2]
[353651440,1739981483020,-500.0,0.00013499,2]
[353651441,1739981483030,-1370.88,0.00013499,2]
[353651442,1739981483040,-500.0,0.00013499,2]
[353651443,1739981483050,-1721.94,0.00013499,2]
[353651444,1739981483060,-1188.82,0.00013499,2]
[353651445,1739981483070,-954.65,0.00013499,2]
[353651446,1739981483081,-1165.0,0.00013499,2]
[353651447,1739981483093,-1053.26,0.00013499,2]
[353651448,1739981483103,-1402.42,0.00013499,2]
[353651449,1739981483114,-1502.66,0.00013499,2]
[353651450,1739981483123,-1458.59,0.00013499,2]
[353651451,1739981483134,-1883.09,0.00013499,2]
[353651452,1739981483145,-500.0,0.00013499,2]
[353651453,1739981483155,-500.0,0.00013499,2]
[353651454,1739981483165,-540.26,0.00013499,2]
[353651455,1739981483175,-1090.36,0.00013499,2]
[353651456,1739981483186,-651.0,0.00013499,2]
[353651457,1739981483195,-590.33,0.00013499,2]
[353651458,1739981483205,-1041.61,0.00013499,2]
[353651459,1739981483215,-803.85,0.00013499,2]
[353651460,1739981483225,-1628.61,0.00013499,2]
[353651461,1739981483239,-867.43,0.000135,2]
[353651462,1739981483248,-500.0,0.000135,2]
[353651463,1739981483259,-1084.29,0.000135,2]
[353651464,1739981483269,-500.0,0.000135,2]
[353651465,1739981483279,-819.96,0.000135,2]
[353651466,1739981483288,-546.22,0.000135,2]
[353651467,1739981483298,-500.0,0.000135,2]
[353651468,1739981483310,-500.0,0.000135,2]
[353651469,1739981483319,-1086.38,0.000135,2]
[353651470,1739981483329,-500.0,0.000135,2]
[353651471,1739981483341,-978.47,0.000135,2]
[353651472,1739981483350,-500.0,0.000135,2]
[353651473,1739981483359,-500.0,0.000135,2]
[353651474,1739981483369,-737.96,0.000135,2]
[353651475,1739981483378,-500.0,0.000135,2]
[353651476,1739981483387,-500.0,0.000135,2]
[353651477,1739981483398,-500.0,0.000135,2]
[353651478,1739981483407,-500.0,0.000135,2]
[353651479,1739981483418,-562.17,0.000135,2]
[353651480,1739981483428,-500.0,0.000135,2]
[353651481,1739981483437,-821.61,0.000135,2]
[353651482,1739981483447,-929.95,0.000135,2]
[353651483,1739981483457,-500.0,0.000135,2]
[353651484,1739981483467,-500.0,0.000135,2]
[353651485,1739981483477,-500.0,0.000135,2]
[353651486,1739981483487,-500.0,0.000135,2]
[353651487,1739981483497,-500.0,0.000135,2]
[353651488,1739981483507,-500.0,0.000135,2]
[353651489,1739981483516,-517.42,0.000135,2]
[353651490,1739981483527,-500.0,0.000135,2]
[353651491,1739981483537,-500.0,0.000135,2]
[353651492,1739981483547,-500.0,0.000135,2]
[353651493,1739981483556,-500.0,0.000135,2]
[353651494,1739981483566,-500.0,0.000135,2]
[353651495,1739981483575,-500.0,0.000135,2]
[353651496,1739981483586,-500.0,0.000135,2]
[353651497,1739981483596,-717.42,0.000135,2]
[353651498,1739981483606,-500.0,0.000135,2]
[353651499,1739981483616,-500.0,0.000135,2]
[353651500,1739981483626,-500.0,0.000135,2]
[353651501,1739981483635,-500.0,0.000135,2]
[353651502,1739981483646,-592.97,0.000135,2]
[353651503,1739981483656,-500.0,0.000135,2]
[353651504,1739981483665,-500.0,0.000135,2]
[353651505,1739981483675,-762.46,0.000135,2]
[353651506,1739981483685,-326.80659595,0.000135,2]
[353651507,1739981483695,-513.35898575,0.000135,2]
[353651508,1739981483705,-500.0,0.000135,2]
[353651509,1739981483715,-500.0,0.000135,2]
[353651510,1739981483725,-703.18,0.000135,2]
[353651511,1739981483734,-500.0,0.000135,2]
[353651512,1739981483744,-537.6,0.000135,2]
[353651513,1739981483754,-500.0,0.000135,2]
[353651514,1739981483763,-500.0,0.000135,2]
[353651515,1739981483773,-628.91,0.000135,2]
[353651516,1739981483782,-500.0,0.000135,2]
[353651517,1739981483792,-1825.39,0.000135,2]
[353651518,1739981483801,-500.0,0.000135,2]
[353651519,1739981483812,-548.04,0.000135,2]
[353651520,1739981483822,-500.0,0.000135,2]
[353651521,1739981483832,-500.0,0.000135,2]
[353651522,1739981483843,-512.35794756,0.000135,2]
[353651523,1739981483853,-500.0,0.000135,2]
[353651524,1739981483864,-500.0,0.000135,2]
[353651525,1739981483874,-500.0,0.000135,2]
[353651526,1739981483883,-500.0,0.000135,2]
[353651527,1739981483894,-500.0,0.000135,2]
[353651528,1739981483904,-500.0,0.000135,2]
[353651529,1739981483914,-500.0,0.000135,2]
[353651530,1739981483923,-500.0,0.000135,2]
[353651531,1739981483933,-500.0,0.000135,2]
[353651532,1739981483942,-541.66,0.000135,2]
[353651533,1739981483951,-169.4035171,0.000135,2]
[353651534,1739981483961,-500.0,0.000135,2]
[353651535,1739981483971,-800.02,0.000135,2]
[353651536,1739981483980,-500.0,0.000135,2]
[353651537,1739981483990,-575.63,0.000135,2]
[353651538,1739981484000,-500.0,0.000135,2]
[353651539,1739981484009,-500.0,0.000135,2]
[353651540,1739981484019,-500.0,0.000135,2]
[353651541,1739981484029,-396.98979511,0.000135,2]
[353651542,1739981484040,-584.41,0.000135,2]
[353651543,1739981484049,-500.0,0.000135,2]
[353651544,1739981484059,-500.0,0.000135,2]
[353651545,1739981484068,-380.93677336,0.000135,2]
[353651546,1739981484078,-500.0,0.000135,2]
[353651547,1739981484089,-500.0,0.000135,2]
[353651548,1739981484098,-500.0,0.000135,2]
[353651549,1739981484108,-500.0,0.000135,2]
[353651550,1739981484117,-500.0,0.000135,2]
[353651551,1739981484127,-471.24731781,0.000135,2]
[353651552,1739981484137,-500.0,0.000135,2]
[353651553,1739981484146,-644.62,0.000135,2]
[353651554,1739981484156,-500.0,0.000135,2]
[353651555,1739981484166,-810.37,0.000135,2]
[353651556,1739981484175,-1012.27,0.000135,2]
[353651557,1739981484186,-500.0,0.000135,2]
[353651558,1739981484195,-500.0,0.000135,2]
[353651559,1739981484205,-835.67,0.000135,2]
[353651560,1739981484214,-592.15,0.000135,2]
[353651561,1739981484225,-500.0,0.000135,2]
[353651562,1739981484237,-500.0,0.000135,2]
[353651563,1739981484247,-752.16,0.000135,2]
[353651564,1739981484256,-500.0,0.000135,2]
[353651565,1739981484265,-500.0,0.000135,2]
[353651566,1739981484277,-500.0,0.000135,2]
[353651567,1739981484287,-500.0,0.000135,2]
[353651568,1739981484297,-500.0,0.000135,2]
[353651569,1739981484307,-1154.01,0.000135,2]
[353651570,1739981484317,-500.0,0.000135,2]
[353651571,1739981484327,-500.0,0.000135,2]
[353651572,1739981484339,-500.0,0.000135,2]
[353651573,1739981484348,-500.0,0.000135,2]
[353651574,1739981484357,-500.0,0.000135,2]
[353651575,1739981484367,-541.73050439,0.000135,7]
[353651576,1739981484376,-500.0,0.000135,2]
[353651577,1739981484386,-522.3,0.000135,2]
[353651578,1739981484395,-500.0,0.000135,2]
[353651579,1739981484404,-688.01,0.000135,2]
[353651580,1739981484413,-534.60043578,0.000135,2]
[353651581,1739981484423,-500.0,0.000135,2]
[353651582,1739981484433,-500.0,0.000135,2]
[353651583,1739981484443,-500.0,0.000135,2]
[353651584,1739981484453,-592.54,0.000135,2]
[353651585,1739981484463,-500.0,0.000135,2]
[353651586,1739981484473,-150.0,0.000135,2]
[353651587,1739981484483,-500.0,0.000135,2]
[353651588,1739981484493,-500.0,0.000135,2]
[353651589,1739981484503,-500.0,0.000135,2]
[353651590,1739981484514,-500.0,0.000135,2]
[353651591,1739981484524,-500.0,0.000135,2]
[353651592,1739981484534,-500.0,0.000135,2]
[353651593,1739981484544,-502.23,0.000135,2]
[353651594,1739981484554,-500.0,0.000135,2]
[353651595,1739981484565,-546.84,0.000135,2]
[353651596,1739981484575,-500.0,0.000135,2]
[353651597,1739981484586,-500.0,0.000135,2]
[353651598,1739981484597,-500.0,0.000135,2]
[353651599,1739981484608,-1154.75,0.000135,2]
[353651600,1739981484619,-500.0,0.000135,2]
[353651601,1739981484631,-500.0,0.000135,2]
[353651602,1739981484642,-505.38850442,0.000135,2]
[353651603,1739981484655,-500.0,0.000135,2]
[353651604,1739981484666,-500.0,0.000135,2]
[353651605,1739981484677,-500.0,0.000135,2]
[353651606,1739981484687,-500.0,0.000135,2]
[353651607,1739981484697,-691.64,0.000135,2]
[353651608,1739981484707,-500.0,0.000135,2]
[353651609,1739981484717,-500.0,0.000135,2]
[353651610,1739981484727,-500.0,0.000135,2]
[353651611,1739981484737,-500.0,0.000135,2]
[353651612,1739981484747,-500.0,0.000135,2]
[353651613,1739981484757,-500.0,0.000135,2]
[353651614,1739981484766,-6974.50663371,0.000135,2]
[353651615,1739981484777,-500.0,0.000135,2]
[353651616,1739981484788,-683.78,0.000135,2]
[353651617,1739981484799,-500.0,0.000135,2]
[353651618,1739981484810,-500.0,0.000135,2]
[353651619,1739981484821,-500.0,0.000135,2]
[353651620,1739981484831,-500.0,0.000135,2]
[353651621,1739981484843,-500.0,0.000135,2]
[353651622,1739981484853,-674.72,0.000135,2]
[353651623,1739981484863,-9249.59478979,0.000135,2]
[353651624,1739981484873,-500.0,0.000135,2]
[353651625,1739981484883,-508.75,0.000135,2]
[353651626,1739981484894,-500.0,0.000135,2]
[353651627,1739981484903,-500.0,0.000135,2]
[353651628,1739981484913,-500.0,0.000135,2]
[353651629,1739981484923,-500.0,0.000135,2]
[353651630,1739981484932,-676.58,0.000135,2]
[353651631,1739981484941,-500.0,0.000135,2]
[353651632,1739981484950,-1021.62,0.000135,2]
[353651633,1739981484961,-500.0,0.000135,2]
[353651634,1739981484972,-500.0,0.000135,2]
[353651635,1739981484983,-500.0,0.000135,2]
[353651636,1739981484993,-500.0,0.000135,2]
[353651637,1739981485003,-500.0,0.000135,2]
[353651638,1739981485014,-500.0,0.000135,2]
[353651639,1739981485025,-500.0,0.000135,2]
[353651640,1739981485036,-642.28,0.000135,2]
[353651641,1739981485047,-592.0,0.000135,2]
[353651642,1739981485057,-500.0,0.000135,2]
[353651643,1739981485068,-500.0,0.000135,2]
[353651644,1739981485079,-500.0,0.000135,2]
[353651645,1739981485092,-500.0,0.000135,2]
[353651646,1739981485103,-500.0,0.000135,2]
[353651647,1739981485114,-1036.35,0.000135,2]
[353651648,1739981485124,-500.0,0.000135,2]
[353651649,1739981485134,-916.85,0.000135,2]
[353651650,1739981485145,-500.0,0.000135,2]
[353651651,1739981485155,-500.0,0.000135,2]
[353651652,1739981485166,-500.0,0.000135,2]
[353651653,1739981485177,-500.0,0.000135,2]
[353651654,1739981485187,-500.0,0.000135,2]
[353651655,1739981485197,-500.0,0.000135,2]
[353651656,1739981485207,-500.0,0.000135,2]
[353651657,1739981485217,-500.0,0.000135,2]
[353651658,1739981485228,-529.85,0.000135,2]
[353651659,1739981485240,-500.0,0.000135,2]
[353651660,1739981485250,-504.92652271,0.000135,2]
[353651661,1739981485260,-500.0,0.000135,2]
[353651662,1739981485271,-500.0,0.000135,2]
[353651663,1739981485281,-500.0,0.000135,2]
[353651664,1739981485293,-269.81297952,0.000135,2]
[353651665,1739981485303,-500.0,0.000135,2]
[353651666,1739981485314,-500.0,0.000135,2]
[353651667,1739981485325,-500.0,0.000135,2]
[353651668,1739981485337,-212.86789251,0.00013507,2]
[353651669,1739981485347,-673.0,0.00013507,2]
[353651670,1739981485357,-631.48725845,0.00013507,2]
[353651671,1739981485367,-674.84,0.00013507,2]
[353651672,1739981485377,-1376.58,0.00013507,2]
[353651673,1739981485387,-2593.33,0.00013507,2]
[353651674,1739981485398,-2387.5,0.00013507,2]
[353651675,1739981485407,-3362.26,0.00013507,2]
[353651676,1739981485416,-1927.35,0.00013507,2]
[353651677,1739981485426,-3084.37,0.00013507,2]
[353651678,1739981485436,-3904.33,0.00013507,2]
[353651679,1739981485446,-150.0,0.00013507,2]
[353651680,1739981485456,-8398.78,0.00013507,2]
[353651681,1739981485466,-1737.59,0.00013507,2]
[353651682,1739981485476,-1979.14,0.00013507,2]
[353651683,1739981485486,-755.1,0.00013507,2]
[353651684,1739981485496,-3253.91,0.00013507,2]
[353651685,1739981485506,-916.63,0.00013507,2]
[353651686,1739981485516,-1946.66,0.00013507,2]
[353651687,1739981485527,-2637.31,0.00013507,2]
[353651688,1739981485537,-3369.24,0.00013507,2]
[353651689,1739981485547,-2313.16,0.00013507,2]
[353651690,1739981485558,-2995.01,0.00013507,2]
[353651691,1739981485568,-712.7,0.00013507,2]
[353651692,1739981485579,-1878.14,0.00013507,2]
[353651693,1739981485591,-3482.35,0.00013507,2]
[353651694,1739981485601,-500.0,0.00013509,2]
[353651695,1739981485612,-500.0,0.00013509,2]
[353651696,1739981485623,-500.0,0.00013509,2]
[353651697,1739981485634,-500.0,0.00013509,2]
[353651698,1739981485643,-500.0,0.00013509,2]
[353651699,1739981485654,-502.00482307,0.00013509,2]
[353651700,1739981485664,-295.82088066,0.00013509,2]
[353651701,1739981485674,-500.0,0.00013509,2]
[353651702,1739981485684,-500.0,0.00013509,2]
[353651703,1739981485694,-1535.79,0.00013509,2]
[353651704,1739981485705,-1449.28,0.00013509,2]
[353651705,1739981485715,-500.0,0.00013509,2]
[353651706,1739981485724,-500.0,0.00013509,2]
[353651707,1739981485734,-689.66,0.00013509,2]
[353651708,1739981485744,-626.67,0.00013509,2]
[353651709,1739981485754,-500.0,0.00013509,2]
[353651710,1739981485764,-500.0,0.00013509,2]
[353651711,1739981485775,-500.0,0.00013509,2]
[353651712,1739981485785,-892.5,0.00013509,2]
[353651713,1739981485794,-635.4,0.00013509,2]
[353651714,1739981485804,-1020.58,0.00013509,2]
[353651715,1739981485813,-1376.01,0.00013509,2]
[353651716,1739981485823,-1010.23,0.00013509,2]
[353651717,1739981485833,-626.49,0.00013509,2]
[353651718,1739981485843,-448.71,0.00013509,2]
[353651719,1739981485854,-1631.89,0.00013509,2]
[353651720,1739981485864,-1015.89,0.00013509,2]
[353651721,1739981485873,-1131.8,0.00013509,2]
[353651722,1739981485883,-1756.52,0.00013509,2]
[353651723,1739981485893,-871.64,0.00013509,2]
[353651724,1739981485903,-1783.34,0.00013509,2]
[353651725,1739981485913,-1957.66,0.00013509,2]
[353651726,1739981485922,-2131.64,0.00013509,2]
[353651727,1739981485932,-811.33,0.00013509,2]
[353651728,1739981485941,-1102.02,0.00013509,2]
[353651729,1739981485951,-646.37,0.00013509,2]
[353651730,1739981485961,-2003.49,0.00013509,2]
[353651731,1739981485971,-1585.53,0.00013509,2]
[353651732,1739981485982,-2113.06,0.00013509,2]
[353651733,1739981485991,-864.26,0.00013509,2]
[353651734,1739981486001,-1784.94,0.00013509,2]
[353651735,1739981486011,-802.26,0.00013509,2]
[353651736,1739981486020,-674.84,0.00013509,2]
[353651737,1739981486029,-1042.13,0.00013509,2]
[353651738,1739981486039,-500.0,0.00013509,2]
[353651739,1739981486049,-2918.0,0.00013509,2]
[353651740,1739981486059,-500.0,0.00013509,2]
[353651741,1739981486070,-500.0,0.00013509,2]
[353651742,1739981486079,-500.0,0.00013509,2]
[353651743,1739981486091,-803.91,0.00013509,2]
[353651744,1739981486101,-500.0,0.00013509,2]
[353651745,1739981486111,-822.2,0.00013509,2]
[353651746,1739981486121,-500.0,0.00013509,2]
[353651747,1739981486131,-1819.96,0.00013509,2]
[353651748,1739981486141,-1721.94,0.00013509,2]
[353651749,1739981486151,-200.0,0.0001351,2]
[353651750,1739981486160,-824.51,0.0001351,2]
[353651751,1739981486170,-500.0,0.0001351,2]
[353651752,1739981486180,-500.0,0.0001351,2]
[353651753,1739981486190,-500.0,0.0001351,2]
[353651754,1739981486199,-559.16,0.0001351,2]
[353651755,1739981486209,-500.0,0.0001351,2]
[353651756,1739981486219,-500.0,0.0001351,2]
[353651757,1739981486234,-616.83,0.0001351,2]
[353651758,1739981486244,-500.0,0.0001351,2]
[353651759,1739981486254,-500.0,0.0001351,2]
[353651760,1739981486264,-500.0,0.0001351,2]
[353651761,1739981486276,-500.0,0.0001351,2]
[353651762,1739981486286,-856.21,0.0001351,2]
[353651763,1739981486296,-500.0,0.0001351,2]
[353651764,1739981486306,-500.0,0.0001351,2]
[353651765,1739981486315,-500.0,0.0001351,2]
[353651766,1739981486325,-509.09,0.0001351,2]
[353651767,1739981486336,-820.84,0.0001351,2]
[353651768,1739981486346,-500.0,0.0001351,2]
[353651769,1739981486356,-500.0,0.0001351,2]
[353651770,1739981486367,-500.0,0.0001351,2]
[353651771,1739981486376,-500.0,0.0001351,2]
[353651772,1739981486386,-500.0,0.0001351,2]
[353651773,1739981486396,-500.0,0.0001351,2]
[353651774,1739981486406,-577.31,0.0001351,2]
[353651775,1739981486415,-500.0,0.0001351,2]
[353651776,1739981486425,-554.36,0.0001351,2]
[353651777,1739981486436,-500.0,0.0001351,2]
[353651778,1739981486445,-500.0,0.0001351,2]
[353651779,1739981486456,-923.34,0.0001351,2]
[353651780,1739981486466,-500.0,0.0001351,2]
[353651781,1739981486476,-500.0,0.0001351,2]
[353651782,1739981486486,-500.0,0.0001351,2]
[353651783,1739981486496,-500.0,0.0001351,2]
[353651784,1739981486506,-500.0,0.0001351,2]
[353651785,1739981486516,-500.0,0.0001351,2]
[353651786,1739981486526,-641.57,0.0001351,2]
[353651787,1739981486536,-823.53,0.0001351,2]
[353651788,1739981486546,-500.0,0.0001351,2]
[353651789,1739981486557,-500.0,0.0001351,2]
[353651790,1739981486568,-2918.0,0.0001351,2]
[353651791,1739981486578,-1819.96,0.00013511,2]
[353651792,1739981486590,-150.0,0.00013512,2]
[353651793,1739981486601,-308.739645,0.00013512,2]
[353651794,1739981486611,-150.0,0.00013514,2]
[353651795,1739981486621,-150.0,0.00013514,2]
[353651796,1739981486632,-150.0,0.0001352,2]
[353651797,1739981486643,-219.18838361,0.00013528,2]
[353651798,1739981486653,-150.0,0.00013528,2]
[353651799,1739981486863,-3123.56,0.00013528,2]
[353651800,1739981486873,-2507.0,0.00013528,2]
[353651801,1739981486882,-2530.66,0.00013528,2]
[353651802,1739981486892,-2794.35,0.00013528,2]
[353651803,1739981486902,-3189.29,0.00013528,2]
[353651804,1739981486911,-643.31,0.00013528,2]
[353651805,1739981486922,-1712.35,0.00013528,2]
[353651806,1739981486931,-500.0,0.00013528,2]
[353651807,1739981486941,-1440.08,0.00013528,2]
[353651808,1739981486951,-3073.73,0.00013528,2]
[353651809,1739981486961,-500.0,0.00013528,2]
[353651810,1739981486971,-749.49,0.00013528,2]
[353651811,1739981486981,-1664.91,0.00013528,2]
[353651812,1739981486991,-1453.44,0.00013528,2]
[353651813,1739981487000,-1783.85,0.00013528,2]
[353651814,1739981487011,-3722.51,0.00013528,2]
[353651815,1739981487022,-150.0,0.0001353,2]
[353651816,1739981487032,-150.0,0.00013531,2]
[353651817,1739981487043,-150.0,0.00013531,2]
[353651818,1739981487054,-150.0,0.00013532,2]
[353651819,1739981487064,-200.0,0.00013534,2]
[353651820,1739981487074,-150.0,0.00013534,2]
[353651821,1739981487083,-200.0,0.00013534,2]
[353651822,1739981487094,-673.0,0.00013534,2]
[353651823,1739981487103,-150.0,0.00013536,2]
[353651824,1739981487112,-150.0,0.00013538,2]
[353651825,1739981487121,-150.0,0.0001354,2]
[353651826,1739981487131,-336.04550685,0.00013542,2]
[353651827,1739981487141,-674.84,0.00013542,2]
[353651828,1739981487150,-250.0,0.00013543,2]
[353651829,1739981487159,-232.0,0.00013543,2]
[353651830,1739981487168,-170.0,0.00013543,2]
[353651831,1739981487177,-150.0,0.00013543,2]
[353651832,1739981487187,-2026.0,0.00013543,2]
[353651833,1739981487195,-1274.0,0.00013543,2]
[353651834,1739981487205,-150.0,0.00013543,2]
[353651835,1739981487214,-569.0,0.00013543,2]
[353651836,1739981487223,-639.0,0.00013543,2]
[353651837,1739981487235,-1787.0,0.00013543,2]
[353651838,1739981487244,-1266.0,0.00013543,2]
[353651839,1739981487254,-784.0,0.00013543,2]
[353651840,1739981487263,-897.0,0.00013543,2]
[353651841,1739981487274,-1424.0,0.00013543,2]
[353651842,1739981487283,-539.0,0.00013543,2]
[353651843,1739981487292,-4030.0,0.00013543,2]
[353651844,1739981487301,-150.0,0.00013546,2]
[353651845,1739981487315,-150.0,0.0001355,2]
[353651846,1739981487325,-150.0,0.0001355,2]
[353651847,1739981487334,-150.0,0.00013553,2]
[353651848,1739981487345,-150.0,0.00013557,2]